fUST/lending_fUST_20250608
["ID","MTS","AMOUNT","RATE_DAILY","PERIOD"]
[364965890,1749361836398,-440.0,0.00019178,2]
[364965891,1749361836413,-430.0,0.00019178,2]
[364965892,1749361836429,-440.0,0.00019178,2]
[364965893,1749361836442,-290.63884412,0.00019178,2]
[364965894,1749361836455,-588.09361166,0.00019178,2]
[364965895,1749361836468,-440.0,0.00019178,2]
[364965896,1749361836482,-440.0,0.00019178,2]
[364965897,1749361836496,-568.05492431,0.00019178,2]
[364965898,1749361836509,-430.0,0.00019178,2]
[364965899,1749361836523,-440.0,0.00019178,2]
[364965900,1749361836538,-440.0,0.00019178,2]
[364965901,1749361836551,-406.75155292,0.00019178,2]
[364965902,1749361836564,-440.0,0.00019178,2]
[364965903,1749361836575,-408.14195522,0.00019178,2]
[364965904,1749361836587,-440.0,0.00019178,2]
[364965905,1749361836600,-440.0,0.00019178,2]
[364965906,1749361836612,-483.99375695,0.00019178,2]
[364965907,1749361836626,-400.0,0.00019178,2]
[364965908,1749361836639,-166.6410457,0.00019178,2]
[364965909,1749361836654,-430.0,0.00019178,2]
[364965910,1749361836667,-440.0,0.00019178,2]
[364965911,1749361836681,-413.18223408,0.00019178,2]
[364965912,1749361836696,-440.0,0.00019178,2]
[364965913,1749361836709,-430.0,0.00019178,2]
[364965914,1749361836725,-440.0,0.00019178,2]
[364965915,1749361836736,-442.43467982,0.00019178,2]
[364965916,1749361836750,-440.0,0.00019178,2]
[364965917,1749361836760,-497.13869693,0.00019178,2]
[364965918,1749361836772,-440.0,0.00019178,2]
[364965919,1749361836785,-440.0,0.00019178,2]
[364965920,1749361836799,-440.0,0.00019178,2]
[364965921,1749361836813,-440.0,0.00019178,2]
[364965922,1749361836826,-430.0,0.00019178,2]
[364965923,1749361836838,-430.0,0.00019178,2]
[364965924,1749361836850,-1207.17,0.00019178,2]
[364965925,1749361836863,-442.18629898,0.00019178,2]
[364965926,1749361836875,-440.0,0.00019178,2]
[364965927,1749361836889,-430.0,0.00019178,2]
[364965928,1749361836903,-440.0,0.00019178,2]
[364965929,1749361836915,-151.0,0.00019178,2]
[364965930,1749361836927,-151.0,0.00019178,2]
[364965931,1749361836939,-430.0,0.00019178,2]
[364965932,1749361836952,-522.08,0.00019178,2]
[364965933,1749361836965,-440.0,0.00019178,2]
[364965934,1749361836977,-440.0,0.00019178,2]
[364965935,1749361836989,-415.18448536,0.00019178,2]
[364965936,1749361837003,-440.0,0.00019178,2]
[364965937,1749361837015,-655.13,0.00019178,2]
[364965938,1749361837028,-416.30234873,0.00019178,2]
[364965939,1749361837040,-636.27,0.00019178,2]
[364965940,1749361837054,-316.17725696,0.00019178,2]
[364965941,1749361837065,-430.0,0.00019178,2]
[364965942,1749361837077,-347.12698007,0.00019178,2]
[364965943,1749361837089,-440.0,0.00019178,2]
[364965944,1749361837103,-440.0,0.00019178,2]
[364965945,1749361837116,-435.90514714,0.00019178,2]
[364965946,1749361837128,-440.0,0.00019178,2]
[364965947,1749361837140,-360.95113158,0.00019178,2]
[364965948,1749361837152,-619.07,0.00019178,2]
[364965949,1749361837165,-440.0,0.00019178,2]
[364965950,1749361837177,-440.0,0.00019178,2]
[364965951,1749361837189,-440.0,0.00019178,2]
[364965952,1749361837200,-440.0,0.00019178,2]
[364965953,1749361837213,-458.49869181,0.00019178,2]
[364965954,1749361837225,-440.0,0.00019178,2]
[364965955,1749361837236,-403.74443085,0.00019178,2]
[364965956,1749361837247,-263.88,0.00019178,2]
[364965957,1749361837259,-408.77794614,0.00019178,2]
[364965958,1749361837271,-440.0,0.00019178,2]
[364965959,1749361837283,-440.0,0.00019178,2]
[364965960,1749361837295,-440.0,0.00019178,2]
[364965961,1749361837308,-440.0,0.00019178,2]
[364965962,1749361837321,-440.0,0.00019178,2]
[364965963,1749361837334,-430.0,0.00019178,2]
[364965964,1749361837347,-409.49654014,0.00019178,2]
[364965965,1749361837359,-250.95682,0.00019178,2]
[364965966,1749361837372,-440.0,0.00019178,2]
[364965967,1749361837384,-444.40049639,0.00019178,2]
[364965968,1749361837396,-151.0,0.00019178,2]
[364965969,1749361837408,-151.0,0.00019178,2]
[364965970,1749361837421,-440.0,0.00019178,2]
[364965971,1749361837434,-440.0,0.00019178,2]
[364965972,1749361837449,-430.0,0.00019178,2]
[364965973,1749361837462,-430.0,0.00019178,2]
[364965974,1749361837474,-447.83271572,0.00019178,2]
[364965975,1749361837487,-440.0,0.00019178,2]
[364965976,1749361837499,-430.84700564,0.00019178,2]
[364965977,1749361837512,-334.01460011,0.00019178,2]
[364965978,1749361837523,-584.2,0.00019178,2]
[364965979,1749361837536,-655.73,0.00019178,2]
[364965980,1749361837549,-440.0,0.00019178,2]
[364965981,1749361837562,-477.12775623,0.00019178,2]
[364965982,1749361837574,-635.67,0.00019178,2]
[364965983,1749361837587,-441.27298147,0.00019178,2]
[364965984,1749361837596,-440.0,0.00019178,2]
[364965985,1749361837606,-440.0,0.00019178,2]
[364965986,1749361837616,-430.0,0.00019178,2]
[364965987,1749361837627,-432.09098518,0.00019178,2]
[364965989,1749361837637,-391.63602435,0.00019178,2]
[364965990,1749361837803,-430.0,0.00019178,2]
[364965991,1749361837815,-324.51326619,0.00019178,2]
[364965992,1749361837824,-499.34,0.00019178,2]
[364965993,1749361837835,-445.45143817,0.00019178,2]
[364965994,1749361837845,-900.68,0.00019178,2]
[364965996,1749361837856,-440.0,0.00019178,2]
[364965998,1749361837865,-430.0,0.00019178,2]
[364966000,1749361837875,-440.0,0.00019178,2]
[364966002,1749361837884,-440.0,0.00019178,2]
[364966003,1749361837894,-440.0,0.00019178,2]
[364966005,1749361837904,-587.48987629,0.00019178,2]
[364966007,1749361837915,-503.47987014,0.00019178,2]
[364966009,1749361837925,-440.0,0.00019178,2]
[364966011,1749361837935,-440.0,0.00019178,2]
[364966013,1749361837944,-440.0,0.00019178,2]
[364966015,1749361837955,-424.468129,0.00019178,2]
[364966017,1749361837965,-440.0,0.00019178,2]
[364966019,1749361837975,-151.0,0.00019178,2]
[364966021,1749361837985,-276.26725567,0.00019178,2]
[364966023,1749361837994,-452.07993005,0.00019178,2]
[364966025,1749361838004,-440.0,0.00019178,2]
[364966027,1749361838014,-190.263646,0.00019178,2]
[364966029,1749361838024,-451.61465739,0.0001931,2]
[364966031,1749361838034,-686.00693432,0.00019415,2]
[364966032,1749361838044,-440.0,0.00019452,2]
[364966033,1749361838053,-420.0,0.00019452,2]
[364966034,1749361838062,-437.84474659,0.00019452,2]
[364966035,1749361838071,-430.10416159,0.00019452,2]
[364966036,1749361838080,-420.0,0.00019452,2]
[364966037,1749361838090,-440.0,0.00019452,2]
[364966038,1749361838100,-440.0,0.00019452,2]
[364966039,1749361838109,-440.0,0.00019452,2]
[364966040,1749361838119,-440.0,0.00019452,2]
[364966041,1749361838129,-440.0,0.00019452,2]
[364966042,1749361838139,-209.54328878,0.00019452,2]
[364966043,1749361838149,-440.0,0.00019452,2]
[364966044,1749361838159,-420.0,0.00019452,2]
[364966045,1749361838169,-440.0,0.00019452,2]
[364966046,1749361838179,-151.0,0.00019452,2]
[364966048,1749361838189,-197.5276661,0.00019452,2]
[364966050,1749361838199,-426.47297212,0.00019452,2]
[364966051,1749361838209,-420.41370067,0.00019452,2]
[364966052,1749361838218,-420.0,0.00019452,2]
[364966054,1749361838227,-440.0,0.00019452,2]
[364966055,1749361838237,-440.0,0.00019452,2]
[364966056,1749361838246,-468.64577577,0.00019452,2]
[364966057,1749361838256,-151.515374,0.00019452,2]
[364966058,1749361838266,-440.0,0.00019452,2]
[364966059,1749361838276,-440.0,0.00019452,2]
[364966060,1749361838286,-440.0,0.00019452,2]
[364966061,1749361838295,-440.0,0.00019452,2]
[364966062,1749361838305,-440.0,0.00019452,2]
[364966063,1749361838315,-420.0,0.00019452,2]
[364966064,1749361838325,-440.0,0.00019452,2]
[364966065,1749361838335,-440.0,0.00019452,2]
[364966066,1749361838344,-420.0,0.00019452,2]
[364966067,1749361838354,-440.0,0.00019452,2]
[364966068,1749361838364,-531.44422146,0.00019452,2]
[364966069,1749361838374,-440.0,0.00019452,2]
[364966070,1749361838383,-440.0,0.00019452,2]
[364966071,1749361838394,-417.28756967,0.00019452,2]
[364966072,1749361838403,-440.0,0.00019452,2]
[364966073,1749361838413,-564.35974314,0.00019452,2]
[364966074,1749361838422,-461.0397124,0.00019452,2]
[364966075,1749361838432,-420.0,0.00019452,2]
[364966076,1749361838442,-499.36631317,0.00019452,2]
[364966077,1749361838451,-417.8171995,0.00019452,2]
[364966078,1749361838461,-440.0,0.00019452,2]
[364966079,1749361838472,-420.0,0.00019452,2]
[364966080,1749361838482,-500.0,0.00019452,2]
[364966081,1749361838492,-322.51900637,0.00019452,2]
[364966082,1749361838503,-420.0,0.00019452,2]
[364966083,1749361838513,-440.0,0.00019452,2]
[364966084,1749361838524,-420.0,0.00019452,2]
[364966085,1749361838535,-365.73548326,0.00019452,2]
[364966086,1749361838545,-420.0,0.00019452,2]
[364966087,1749361838555,-420.0,0.00019452,2]
[364966088,1749361838565,-440.0,0.00019452,2]
[364966089,1749361838574,-440.0,0.00019452,2]
[364966090,1749361838584,-440.0,0.00019452,2]
[364966091,1749361838594,-440.0,0.00019452,2]
[364966092,1749361838604,-440.0,0.00019452,2]
[364966093,1749361838614,-440.0,0.00019452,2]
[364966094,1749361838624,-344.13332259,0.00019452,2]
[364966095,1749361838634,-440.0,0.00019452,2]
[364966096,1749361838645,-205.938716,0.00019452,2]
[364966097,1749361838655,-487.77790784,0.00019452,2]
[364966098,1749361838664,-458.10995854,0.00019452,2]
[364966099,1749361838674,-440.0,0.00019452,2]
[364966100,1749361838683,-500.01008844,0.00019452,2]
[364966101,1749361838693,-440.0,0.00019452,2]
[364966102,1749361838702,-440.0,0.00019452,2]
[364966103,1749361838712,-440.0,0.00019452,2]
[364966104,1749361838721,-164.180354,0.00019452,2]
[364966105,1749361838730,-440.0,0.00019452,2]
[364966106,1749361838744,-440.0,0.00019452,2]
[364966107,1749361838753,-453.35736995,0.00019452,2]
[364966108,1749361838763,-440.0,0.00019452,2]
[364966109,1749361838772,-440.0,0.00019452,2]
[364966110,1749361838784,-440.0,0.00019452,2]
[364966111,1749361838793,-440.0,0.00019452,2]
[364966112,1749361838803,-440.0,0.00019452,2]
[364966113,1749361838813,-152.80243456,0.00019452,2]
[364966114,1749361838822,-420.0,0.00019452,2]
[364966115,1749361838833,-440.0,0.00019452,2]
[364966116,1749361838842,-440.0,0.00019452,2]
[364966117,1749361838853,-440.0,0.00019452,2]
[364966118,1749361838862,-440.0,0.00019452,2]
[364966119,1749361838871,-440.0,0.00019452,2]
[364966120,1749361838881,-420.0,0.00019452,2]
[364966121,1749361838890,-420.0,0.00019452,2]
[364966122,1749361838900,-500.0,0.00019452,2]
[364966123,1749361838910,-420.0,0.00019452,2]
[364966124,1749361838919,-420.0,0.00019452,2]
[364966125,1749361838929,-420.0,0.00019452,2]
[364966126,1749361838939,-440.0,0.00019452,2]
[364966127,1749361838948,-440.0,0.00019452,2]
[364966128,1749361838958,-440.0,0.00019452,2]
[364966129,1749361838968,-440.0,0.00019452,2]
[364966130,1749361838978,-440.0,0.00019452,2]
[364966131,1749361838988,-440.0,0.00019452,2]
[364966132,1749361838998,-420.0,0.00019452,2]
[364966133,1749361839007,-152.821054,0.00019452,2]
[364966134,1749361839018,-420.0,0.00019452,2]
[364966135,1749361839027,-420.0,0.00019452,2]
[364966136,1749361839037,-420.0,0.00019452,2]
[364966137,1749361839047,-440.0,0.00019452,2]
[364966138,1749361839056,-440.0,0.00019452,2]
[364966139,1749361839066,-440.0,0.00019452,2]
[364966140,1749361839076,-440.0,0.00019452,2]
[364966141,1749361839090,-426.93167448,0.00019452,2]
[364966142,1749361839100,-1168.58,0.00019452,2]
[364966143,1749361839109,-151.0,0.00019452,2]
[364966144,1749361839119,-151.0,0.00019452,2]
[364966145,1749361839129,-440.0,0.00019452,2]
[364966146,1749361839139,-204.04793499,0.00019452,2]
[364966147,1749361839148,-151.0,0.00019452,2]
[364966148,1749361839157,-151.0,0.00019452,2]
[364966149,1749361839167,-440.0,0.00019452,2]
[364966150,1749361839177,-440.0,0.00019452,2]
[364966151,1749361839187,-469.19825307,0.00019452,2]
[364966152,1749361839196,-440.0,0.00019452,2]
[364966153,1749361839205,-440.0,0.00019452,2]
[364966154,1749361839215,-533.32600223,0.00019452,2]
[364966155,1749361839228,-463.91,0.00019452,2]
[364966156,1749361839238,-259.40985428,0.00019452,2]
[364966157,1749361839247,-420.0,0.00019452,2]
[364966158,1749361839256,-500.0,0.00019452,2]
[364966159,1749361839266,-460.64,0.00019452,2]
[364966160,1749361839275,-440.0,0.00019452,2]
[364966161,1749361839285,-440.0,0.00019452,2]
[364966162,1749361839294,-440.0,0.00019452,2]
[364966163,1749361839304,-250.60234251,0.00019452,2]
[364966164,1749361839313,-440.0,0.00019452,2]
[364966165,1749361839323,-440.0,0.00019452,2]
[364966166,1749361839333,-440.64006613,0.00019452,2]
[364966167,1749361839343,-436.85156411,0.00019452,2]
[364966168,1749361839353,-741.76,0.00019452,2]
[364966169,1749361839363,-179.29331167,0.00019452,2]
[364966170,1749361839373,-430.09113496,0.00019452,2]
[364966171,1749361839384,-440.0,0.00019452,2]
[364966172,1749361839394,-589.0,0.00019452,2]
[364966173,1749361839404,-440.0,0.00019452,2]
[364966174,1749361839414,-440.0,0.00019452,2]
[364966175,1749361839424,-440.0,0.00019452,2]
[364966176,1749361839433,-253.08,0.00019452,2]
[364966177,1749361839443,-440.0,0.00019452,2]
[364966178,1749361839453,-420.0,0.00019452,2]
[364966179,1749361839463,-440.0,0.00019452,2]
[364966180,1749361839472,-420.0,0.00019452,2]
[364966181,1749361839483,-443.15301808,0.00019452,2]
[364966182,1749361839492,-420.0,0.00019452,2]
[364966183,1749361839502,-440.0,0.00019452,2]
[364966184,1749361839511,-521.25,0.00019452,2]
[364966185,1749361839520,-440.0,0.00019452,2]
[364966186,1749361839530,-440.0,0.00019452,2]
[364966187,1749361839539,-420.0,0.00019452,2]
[364966188,1749361839549,-440.0,0.00019452,2]
[364966189,1749361839558,-151.0,0.00019452,2]
[364966190,1749361839568,-440.0,0.00019452,2]
[364966191,1749361839578,-440.0,0.00019452,2]
[364966192,1749361839588,-219.24765,0.00019452,2]
[364966193,1749361839598,-533.64,0.00019452,2]
[364966194,1749361839608,-440.0,0.00019452,2]
[364966195,1749361839618,-420.0,0.00019452,2]
[364966196,1749361839628,-440.0,0.00019452,2]
[364966198,1749361839638,-420.93585546,0.00019452,2]
[364966200,1749361839648,-440.0,0.00019452,2]
[364966202,1749361839658,-440.0,0.00019452,2]
[364966204,1749361839667,-440.0,0.00019452,2]
[364966206,1749361839677,-440.0,0.00019452,2]
[364966208,1749361839686,-461.37969676,0.00019452,2]
[364966210,1749361839696,-440.0,0.00019452,2]
[364966212,1749361839705,-440.0,0.00019452,2]
[364966214,1749361839716,-440.0,0.00019452,2]
[364966216,1749361839726,-440.0,0.00019452,2]
[364966218,1749361839736,-453.82136979,0.00019452,2]
[364966220,1749361839749,-440.0,0.00019452,2]
[364966222,1749361839759,-292.0483291,0.00019452,2]
[364966224,1749361839769,-410.84988974,0.00019452,2]
[364966226,1749361839778,-1207.17,0.00019452,2]
[364966228,1749361839790,-440.0,0.00019452,2]
[364966230,1749361839799,-420.0,0.00019452,2]
[364966232,1749361839809,-227.560631,0.00019452,2]
[364966235,1749361839821,-522.08,0.00019452,2]
[364966237,1749361839831,-440.0,0.00019452,2]
[364966239,1749361839841,-420.0,0.00019452,2]
[364966241,1749361839850,-412.71157011,0.00019452,2]
[364966243,1749361839860,-655.13,0.00019452,2]
[364966245,1749361839869,-636.27,0.00019452,2]
[364966247,1749361839879,-440.0,0.00019452,2]
[364966249,1749361839888,-440.0,0.00019452,2]
[364966251,1749361839898,-440.0,0.00019452,2]
[364966253,1749361839908,-619.07,0.00019452,2]
[364966255,1749361839917,-445.82626205,0.00019452,2]
[364966257,1749361839927,-437.04212217,0.00019452,2]
[364966259,1749361839937,-463.80293826,0.00019452,2]
[364966261,1749361839946,-440.0,0.00019452,2]
[364966263,1749361839955,-440.0,0.00019452,2]
[364966265,1749361839964,-216.9805444,0.00019452,2]
[364966267,1749361839973,-318.16,0.00019452,2]
[364966270,1749361839983,-440.0,0.00019452,2]
[364966272,1749361839992,-440.0,0.00019452,2]
[364966274,1749361840001,-440.0,0.00019452,2]
[364966276,1749361840010,-426.49164404,0.00019452,2]
[364966278,1749361840020,-259.501906,0.00019452,2]
[364966279,1749361840029,-433.85282969,0.00019452,2]
[364966280,1749361840039,-191.88,0.00019452,2]
[364966281,1749361840048,-440.0,0.00019452,2]
[364966282,1749361840057,-584.2,0.00019452,2]
[364966283,1749361840067,-655.73,0.00019452,2]
[364966285,1749361840076,-440.0,0.00019452,2]
[364966287,1749361840085,-635.67,0.00019452,2]
[364966289,1749361840094,-186.56,0.00019452,2]
[364966291,1749361840104,-440.0,0.00019452,2]
[364966294,1749361840113,-900.68,0.00019452,2]
[364966296,1749361840123,-440.0,0.00019452,2]
[364966298,1749361840132,-440.0,0.00019452,2]
[364966300,1749361840141,-440.0,0.00019452,2]
[364966302,1749361840150,-440.0,0.00019452,2]
[364966304,1749361840160,-440.0,0.00019452,2]
[364966306,1749361840169,-326.36575674,0.00019452,2]
[364966308,1749361840178,-440.0,0.00019452,2]
[364966310,1749361840187,-440.0,0.00019452,2]
[364966312,1749361840197,-151.0,0.00019476,2]
[364966314,1749361840206,-420.0,0.00019477,2]
[364966316,1749361840216,-500.0,0.00019644,2]
[364966318,1749361840225,-500.0,0.00019644,2]
[364966320,1749361840235,-150.0,0.00019652,2]
[364966322,1749361840244,-500.0,0.00019671,2]
[364966324,1749361840254,-504.48684776,0.00019671,2]
[364966326,1749361840263,-514.68247505,0.00019699,2]
[364966328,1749361840273,-410.0,0.00019726,2]
[364966330,1749361840282,-440.0,0.00019726,2]
[364966332,1749361840292,-451.994809,0.00019726,2]
[364966334,1749361840301,-440.0,0.00019726,2]
[364966336,1749361840311,-430.26183374,0.00019726,2]
[364966339,1749361840321,-440.0,0.00019726,2]
[364966341,1749361840330,-440.0,0.00019726,2]
[364966343,1749361840341,-440.0,0.00019726,2]
[364966345,1749361840351,-440.0,0.00019726,2]
[364966347,1749361840362,-440.0,0.00019726,2]
[364966349,1749361840371,-410.0,0.00019726,2]
[364966351,1749361840381,-425.14670364,0.00019726,2]
[364966353,1749361840390,-418.01469061,0.00019726,2]
[364966355,1749361840401,-440.0,0.00019726,2]
[364966357,1749361840412,-440.0,0.00019726,2]
[364966359,1749361840422,-431.50363553,0.00019726,2]
[364966361,1749361840432,-440.0,0.00019726,2]
[364966363,1749361840442,-440.0,0.00019726,2]
[364966365,1749361840451,-440.0,0.00019726,2]
[364966367,1749361840461,-440.0,0.00019726,2]
[364966369,1749361840472,-182.86,0.00019726,2]
[364966372,1749361840482,-481.09436803,0.00019726,2]
[364966375,1749361840491,-500.0,0.00019726,2]
[364966379,1749361840501,-440.0,0.00019726,2]
[364966381,1749361840511,-440.0,0.00019726,2]
[364966383,1749361840520,-440.0,0.00019726,2]
[364966386,1749361840530,-238.18,0.00019726,2]
[364966401,1749361840670,-440.0,0.00019726,2]
[364966404,1749361840680,-510.54594347,0.00019726,2]
[364966406,1749361840690,-440.0,0.00019726,2]
[364966408,1749361840700,-410.0,0.00019726,2]
[364966410,1749361840710,-410.0,0.00019726,2]
[364966412,1749361840719,-440.0,0.00019726,2]
[364966414,1749361840729,-440.0,0.00019726,2]
[364966416,1749361840740,-421.27121487,0.00019726,2]
[364966418,1749361840749,-440.0,0.00019726,2]
[364966420,1749361840759,-440.0,0.00019726,2]
[364966422,1749361840769,-440.0,0.00019726,2]
[364966424,1749361840778,-214.00878273,0.00019726,2]
[364966426,1749361840788,-293.37556004,0.00019726,2]
[364966428,1749361840798,-440.0,0.00019726,2]
[364966430,1749361840807,-440.0,0.00019726,2]
[364966432,1749361840817,-440.0,0.00019726,2]
[364966434,1749361840827,-440.0,0.00019726,2]
[364966436,1749361840837,-440.0,0.00019726,2]
[364966438,1749361840846,-221.73533407,0.00019726,2]
[364966440,1749361840856,-577.39716575,0.00019726,2]
[364966442,1749361840866,-440.0,0.00019726,2]
[364966444,1749361840876,-440.0,0.00019726,2]
[364966446,1749361840886,-249.58600549,0.00019726,2]
[364966448,1749361840896,-259.29095711,0.00019726,2]
[364966449,1749361840906,-440.0,0.00019726,2]
[364966450,1749361840916,-440.0,0.00019726,2]
[364966451,1749361840925,-440.0,0.00019726,2]
[364966453,1749361840935,-279.11954243,0.00019726,2]
[364966455,1749361840944,-440.0,0.00019726,2]
[364966457,1749361840954,-440.0,0.00019726,2]
[364966459,1749361840964,-1168.58,0.00019726,2]
[364966461,1749361840973,-151.0,0.00019726,2]
[364966463,1749361840983,-440.0,0.00019726,2]
[364966465,1749361840993,-151.0,0.00019726,2]
[364966467,1749361841003,-512.52,0.00019726,2]
[364966469,1749361841012,-440.0,0.00019726,2]
[364966471,1749361841021,-440.0,0.00019726,2]
[364966472,1749361841031,-360.0,0.00019726,2]
[364966474,1749361841040,-463.91,0.00019726,2]
[364966476,1749361841050,-500.0,0.00019726,2]
[364966478,1749361841059,-460.64,0.00019726,2]
[364966480,1749361841069,-440.0,0.00019726,2]
[364966482,1749361841078,-440.0,0.00019726,2]
[364966484,1749361841088,-440.0,0.00019726,2]
[364966486,1749361841098,-440.0,0.00019726,2]
[364966488,1749361841107,-440.0,0.00019726,2]
[364966490,1749361841117,-741.76,0.00019726,2]
[364966492,1749361841127,-440.0,0.00019726,2]
[364966494,1749361841137,-440.0,0.00019726,2]
[364966496,1749361841146,-291.17215879,0.00019726,2]
[364966498,1749361841156,-440.0,0.00019726,2]
[364966500,1749361841166,-440.0,0.00019726,2]
[364966502,1749361841176,-440.0,0.00019726,2]
[364966504,1749361841186,-440.0,0.00019726,2]
[364966506,1749361841195,-284.22,0.00019726,2]
[364966508,1749361841206,-440.0,0.00019726,2]
[364966510,1749361841215,-440.0,0.00019726,2]
[364966512,1749361841225,-151.0,0.00019726,2]
[364966514,1749361841234,-440.0,0.00019726,2]
[364966516,1749361841243,-523.64,0.00019726,2]
[364966518,1749361841253,-533.64,0.00019726,2]
[364966520,1749361841263,-440.0,0.00019726,2]
[364966522,1749361841272,-440.0,0.00019726,2]
[364966524,1749361841281,-440.0,0.00019726,2]
[364966526,1749361841291,-440.0,0.00019726,2]
[364966528,1749361841302,-440.0,0.00019726,2]
[364966531,1749361841311,-440.0,0.00019726,2]
[364966533,1749361841321,-269.29,0.00019726,2]
[364966535,1749361841331,-440.0,0.00019726,2]
[364966537,1749361841340,-302.91,0.00019726,2]
[364966539,1749361841353,-440.0,0.00019726,2]
[364966541,1749361841367,-440.0,0.00019726,2]
[364966543,1749361841376,-1207.17,0.00019726,2]
[364966545,1749361841387,-440.0,0.00019726,2]
[364966547,1749361841398,-522.08,0.00019726,2]
[364966549,1749361841408,-440.0,0.00019726,2]
[364966551,1749361841418,-655.13,0.00019726,2]
[364966553,1749361841428,-636.27,0.00019726,2]
[364966555,1749361841442,-440.0,0.00019726,2]
[364966558,1749361841455,-440.0,0.00019726,2]
[364966560,1749361841464,-410.0,0.00019726,2]
[364966562,1749361841474,-619.07,0.00019726,2]
[364966564,1749361841484,-440.0,0.00019726,2]
[364966566,1749361841493,-502.8634833,0.00019726,2]
[364966568,1749361841502,-440.0,0.00019726,2]
[364966570,1749361841511,-440.0,0.00019726,2]
[364966572,1749361841521,-440.0,0.00019726,2]
[364966574,1749361841531,-422.67796825,0.00019726,2]
[364966576,1749361841543,-584.2,0.00019726,2]
[364966578,1749361841554,-655.73,0.00019726,2]
[364966580,1749361841563,-440.0,0.00019726,2]
[364966582,1749361841573,-635.67,0.00019726,2]
[364966584,1749361841582,-440.0,0.00019726,2]
[364966586,1749361841592,-900.68,0.00019726,2]
[364966588,1749361841603,-440.0,0.00019726,2]
[364966591,1749361841612,-440.0,0.00019726,2]
[364966593,1749361841623,-437.67069498,0.00019726,2]
[364966595,1749361841632,-440.0,0.00019726,2]
[364966597,1749361841641,-440.0,0.00019726,2]
[364966599,1749361841652,-160.7259297,0.00019726,2]
[364966601,1749361841663,-440.0,0.00019726,2]
[364966603,1749361841672,-686.00693432,0.00019751,2]
[364966605,1749361841682,-177.10593893,0.00019863,2]
[364966607,1749361841691,-606.770756,0.00019867,2]
[364966609,1749361841702,-160.0,0.00019956,2]
[364966611,1749361841712,-11853.97844947,0.00019967,2]
[364966613,1749361841723,-160.0,0.00019967,2]
[364966614,1749361841733,-423.98131849,0.00019967,2]
[364966616,1749361841747,-160.0,0.00019967,2]
[364966617,1749361841758,-229.60437222,0.00019967,2]
[364966618,1749361841768,-842.5625,0.00019967,2]
[364966619,1749361841779,-213.05153702,0.00019967,2]
[364966620,1749361841791,-160.0,0.00019967,2]
[364966621,1749361841802,-440.0,0.0002,2]
[364966623,1749361841812,-440.0,0.0002,2]
[364966625,1749361841824,-440.0,0.0002,2]
[364966627,1749361841834,-440.0,0.0002,2]
[364966629,1749361841844,-440.0,0.0002,2]
[364966631,1749361841853,-228.085613,0.0002,2]
[364966633,1749361841862,-416.13870317,0.0002,2]
[364966635,1749361841872,-440.0,0.0002,2]
[364966636,1749361841882,-419.37128976,0.0002,2]